bitfinex/quotes_ETHUSD_20250529
["timestamp","ask_amount","ask_price","bid_price","bid_amount"]
[1748527317870,1.5317,2663.1,2662.7,0.03617353]
[1748527317871,4.88867,2662.9,2662.7,0.03617353]
[1748527318699,4.88867,2662.9,2662.5,0.380657]
[1748527318913,1.5317,2663.1,2662.2,3.7562895]
[1748527319071,4.305,2662.9,2662.1,3.75636122]
[1748527319271,1.5317,2663.1,2662.2,3.989382]
[1748527319466,1.5317,2663.1,2662.2,4.302082]
[1748527319467,4.305,2663.0,2662.2,4.302082]
[1748527319713,8.104,2664.2,2662.4,4.9481]
[1748527319913,1.284,2663.5,2662.5,13.6739]
[1748527320229,5.9269,2663.4,2662.5,10.0]
[1748527320366,5.9269,2663.4,2662.5,12.123]
[1748527320571,5.9269,2663.4,2662.5,10.0]
[1748527320781,1.6219,2663.3,2662.3,0.03482843]
[1748527321008,1.6306,2663.1,2662.3,0.03482843]
[1748527321777,0.55,2662.9,2662.3,0.03482843]
[1748527322076,5.35917426,2662.8,2662.3,0.03482843]
[1748527322387,4.30586854,2662.5,2662.3,0.03482843]
[1748527322592,3.45246233,2662.4,2662.3,0.03482843]
[1748527322829,4.55074623,2662.4,2662.3,0.03482843]
[1748527322985,8.30675584,2662.4,2662.3,0.03482843]
[1748527323321,4.00074623,2662.4,2662.3,0.03482843]
[1748527324175,7.75675584,2662.4,2662.3,0.03482843]
[1748527324377,8.30675584,2662.4,2662.3,0.03482843]
[1748527325116,4.00074623,2662.4,2662.3,0.03482843]
[1748527325321,2.71674623,2662.4,2662.3,0.03482843]
[1748527325494,1.5715,2662.4,2662.3,0.03482843]
[1748527325831,3.75468602,2663.4,2662.3,0.03482843]
[1748527325832,1.5132,2663.1,2662.5,3.75579479]
[1748527325992,1.5132,2663.5,2662.5,1.5711]
[1748527326190,5.8162,2663.5,2662.5,1.5711]
[1748527326378,0.58162,2663.4,2662.5,1.5711]
[1748527326925,0.58162,2663.4,2662.3,0.03482843]
[1748527327091,1.6517,2663.3,2662.3,0.03482843]
[1748527328323,1.5772,2663.1,2662.3,0.03482843]
[1748527328626,0.58162,2663.4,2662.3,0.03482843]
[1748527328627,1.5772,2662.9,2662.3,0.03482843]
[1748527328780,4.302,2662.8,2662.3,0.03482843]
[1748527329211,1.5772,2662.9,2662.3,0.03482843]
[1748527329411,1.551,2663.2,2662.5,5.625404]
[1748527329648,1.551,2663.2,2662.4,1.6154]
[1748527329821,5.586,2663.8,2662.6,4.360926]
[1748527329822,4.302,2663.6,2662.6,4.360926]
[1748527330011,1.55,2663.5,2662.7,10.0]
[1748527330352,1.55,2663.5,2662.6,18.41659161]
[1748527330509,1.55,2663.5,2662.7,10.0]
[1748527330709,1.55,2663.5,2662.6,4.660926]
[1748527330710,1.59693557,2663.5,2662.5,0.54063062]
[1748527330910,0.53513326,2663.4,2662.5,0.54063062]
[1748527331155,1.55,2663.5,2662.5,0.54063062]
[1748527331651,1.55,2663.5,2662.6,10.0]
[1748527331809,1.55,2663.5,2662.6,2.612226]
[1748527332014,1.55,2663.5,2662.5,10.54063062]
[1748527332227,1.55,2663.5,2662.6,12.683226]
[1748527332435,1.55,2663.5,2662.7,10.79717015]
[1748527332639,1.55,2663.5,2662.7,0.79717015]
[1748527333021,1.284,2663.8,2662.7,8.79717015]
[1748527333231,1.284,2663.8,2663.1,5.281648]
[1748527333441,1.284,2663.8,2663.2,10.0]
[1748527333722,1.284,2663.8,2663.1,3.75501708]
[1748527333723,1.284,2663.8,2663.3,0.54063062]
[1748527334554,1.6781,2663.9,2663.4,0.02817224]
[1748527334731,0.02,2663.9,2663.4,5.38709475]
[1748527334926,0.02,2663.9,2663.5,3.668326]
[1748527335127,0.02,2663.9,2663.6,3.7541949]
[1748527335459,0.02,2663.9,2663.8,4.331059]
[1748527335682,0.02,2663.9,2663.7,4.12951824]
[1748527335683,0.02,2663.9,2663.7,0.37541949]
[1748527335811,0.02,2663.9,2663.6,8.0]
[1748527336014,0.02,2663.9,2663.5,19.46193894]
[1748527336015,0.02,2663.9,2663.4,9.6325]
[1748527336268,0.02,2663.9,2663.3,0.37543917]
[1748527336557,1.6807,2663.9,2662.9,3.75528201]
[1748527336769,1.6807,2663.9,2663.1,8.0]
[1748527336936,1.6807,2663.9,2663.3,10.0]
[1748527337335,0.02,2663.9,2663.4,8.687473]
[1748527337540,0.02,2663.9,2663.5,2.454474]
[1748527337752,0.02,2663.9,2663.6,16.361653]
[1748527337970,0.02,2663.9,2663.6,10.0]
[1748527338168,0.02,2663.9,2663.7,10.0]
[1748527338353,0.02,2663.9,2663.4,5.40854555]
[1748527338354,0.02,2663.9,2663.4,9.654]
[1748527338560,0.02,2663.9,2663.6,10.0]
[1748527338732,0.02,2663.9,2663.7,10.0]
[1748527338932,0.02,2663.9,2663.6,4.896987]
[1748527339272,0.02,2663.9,2663.7,10.0]
[1748527339484,0.02,2663.9,2663.8,2.41337]
[1748527339695,0.02,2663.9,2663.5,15.851446]
[1748527339829,0.02,2663.9,2663.4,1.654]
[1748527340270,0.02,2663.9,2663.5,14.575665]
[1748527340432,0.02,2663.9,2663.7,10.0]
[1748527340765,0.02,2663.9,2663.8,8.667679]
[1748527340969,0.02,2663.9,2663.5,20.494344]
[1748527341276,0.02,2663.9,2663.8,8.81851858]
[1748527341447,0.02,2663.9,2663.8,10.126549]
[1748527341656,0.02,2663.9,2663.8,14.41508858]
[1748527341855,0.02,2663.9,2663.8,16.00278858]
[1748527342067,0.02,2663.9,2663.8,16.33988758]
[1748527342245,0.02,2663.9,2663.8,15.41484958]
[1748527342575,0.02,2663.9,2663.8,16.73997458]
[1748527343086,0.02,2663.9,2663.8,13.34173558]
[1748527343260,0.02,2663.9,2663.8,16.92039758]
[1748527343462,0.02,2663.9,2663.8,20.10477458]
[1748527343664,0.02,2663.9,2663.8,17.86984258]
[1748527346646,0.02,2664.9,2663.9,9.6099]
[1748527346852,0.02,2664.9,2664.3,17.37075354]
[1748527347149,0.02,2664.9,2664.6,15.88834335]
[1748527347354,0.02,2664.9,2664.6,2.2451]
[1748527347585,1.662,2664.8,2664.3,8.0]
[1748527347787,1.662,2664.8,2664.4,3.481526]
[1748527348095,1.662,2664.8,2664.5,10.0]
[1748527349353,1.662,2664.8,2664.3,8.0]
[1748527349697,0.02,2664.9,2664.5,10.0]
[1748527349901,0.02,2664.9,2664.6,3.553911]
[1748527350086,0.02,2664.9,2664.8,19.14578283]
[1748527350270,0.02,2664.9,2664.8,18.30965283]
[1748527352206,0.02,2664.9,2664.8,14.69923483]
[1748527352394,0.02,2664.9,2664.8,18.47455466]
[1748527352569,0.34001198,2665.0,2664.9,22.56675202]
[1748527352932,0.34001198,2665.0,2664.9,22.00850202]
[1748527353120,0.34001198,2665.0,2664.9,18.00310802]
[1748527353435,0.20001198,2665.0,2664.9,18.00310802]
[1748527354237,0.35008448,2665.3,2665.2,50.44285863]
[1748527354517,0.02675771,2665.3,2665.2,52.32271467]
[1748527354815,0.02675771,2665.3,2665.2,21.56288167]
[1748527355327,1.6661,2666.4,2665.3,11.75188553]
[1748527355526,1.5406,2666.7,2665.8,8.81218514]
[1748527355819,1.5406,2666.7,2665.8,16.81218514]
[1748527355968,1.5406,2666.7,2665.8,18.44338514]
[1748527356172,1.5406,2666.7,2665.8,16.36299414]
[1748527356398,1.5406,2666.7,2665.8,12.6465577]
[1748527356601,1.5406,2666.7,2665.8,0.0347827]
[1748527357213,1.5668,2666.1,2665.8,0.0347827]
[1748527361498,1.6133,2665.9,2665.8,0.0347827]
[1748527363843,5.91437843,2665.9,2665.8,0.0347827]
[1748527363992,5.36437843,2665.9,2665.8,0.0347827]
[1748527364194,5.8963,2665.9,2665.8,0.0347827]
[1748527364440,2.33043,2665.9,2665.8,0.0347827]
[1748527364600,5.8953,2665.9,2665.8,0.0347827]
[1748527365276,0.02,2665.9,2665.8,0.0347827]
[1748527367062,1.6262,2665.9,2665.8,0.0347827]
[1748527367280,6.4572,2665.9,2665.8,0.0347827]
[1748527368564,5.9072,2665.9,2665.8,0.0347827]
[1748527369125,6.49792,2665.9,2665.8,0.0347827]
[1748527371662,12.06599843,2665.9,2665.8,0.0347827]
[1748527371881,1.6004,2665.6,2664.8,0.38056379]
[1748527372163,1.6004,2665.6,2664.5,1.5981]
[1748527372338,1.6004,2665.5,2664.5,8.0]
[1748527372537,1.6004,2665.4,2664.2,1.5981]
[1748527372767,4.279,2665.3,2664.2,1.5981]
[1748527372975,3.75255544,2664.9,2663.9,1.5812]
[1748527373139,1.5766,2664.7,2664.2,0.36620985]
[1748527373467,1.5766,2664.7,2663.9,1.5812]
[1748527373823,1.5766,2664.7,2664.0,10.0]
[1748527374060,1.5766,2664.7,2663.9,1.5812]
[1748527374264,1.5766,2664.7,2663.9,5.33508441]
[1748527374567,1.5766,2664.7,2664.0,8.0]
[1748527374947,1.5766,2664.7,2664.0,3.7537441]
[1748527375354,1.5766,2664.7,2664.0,4.12691146]
[1748527375670,1.5766,2664.7,2664.2,10.0]
[1748527375850,1.5766,2664.7,2664.0,10.37318385]
[1748527376164,1.5766,2664.7,2664.0,0.37318385]
[1748527376366,1.5766,2664.7,2664.2,10.0]
[1748527376564,0.04691626,2664.6,2663.6,8.03481143]
[1748527376752,1.5766,2664.7,2663.7,17.01106667]
[1748527376924,1.5766,2664.7,2663.8,8.0]
[1748527377127,1.5766,2664.7,2663.8,0.38030782]
[1748527377355,1.5766,2664.7,2663.7,13.75416988]
[1748527377558,1.5766,2664.7,2663.8,10.0]
[1748527377870,1.5766,2664.7,2663.6,9.63511143]
[1748527378054,1.5766,2664.7,2663.9,8.0]
[1748527379575,1.5766,2664.7,2663.9,3.75378647]
[1748527379771,1.5766,2664.7,2664.0,3.7536832]
[1748527379957,1.5926,2665.0,2664.3,10.0]
[1748527380473,1.5926,2665.0,2664.1,11.5299]
[1748527380660,1.5926,2665.0,2664.1,1.5299]
[1748527381260,1.5926,2665.0,2663.9,8.0]
[1748527381432,1.5926,2665.0,2663.8,1.6306]
[1748527381627,1.6112,2664.9,2663.8,2.00707516]
[1748527381829,1.6112,2664.9,2663.8,0.37647516]
[1748527382035,1.6112,2664.8,2663.7,10.0]
[1748527382261,1.6112,2664.6,2663.6,0.03481143]
[1748527382465,1.6112,2664.4,2663.6,0.03481143]
[1748527382777,1.6112,2664.3,2662.8,10.0]
[1748527383074,1.6112,2664.3,2663.1,11.75501627]
[1748527383293,2.8782,2664.3,2662.9,6.516731]
[1748527383495,2.8782,2664.3,2663.4,8.0]
[1748527383496,1.6112,2664.3,2663.4,8.0]
[1748527383664,2.25862107,2664.3,2663.4,11.75458207]
[1748527383990,2.25862107,2664.3,2663.4,3.75454929]
[1748527384188,1.6112,2664.3,2663.6,13.754271]
[1748527384397,1.6112,2664.3,2663.6,10.0]
[1748527384565,1.6112,2664.3,2663.6,9.41266]
[1748527384753,1.6112,2664.3,2663.6,12.52706]
[1748527384952,1.6112,2664.3,2663.8,10.0]
[1748527385181,1.6112,2664.3,2663.7,3.75417282]
[1748527385366,1.6112,2664.3,2663.7,10.0]
[1748527385548,1.6112,2664.3,2663.4,18.0]
[1748527385773,1.6112,2664.3,2663.6,3.06837]
[1748527385953,1.6112,2664.3,2663.7,12.534457]
[1748527386319,1.6112,2664.3,2663.7,7.73787263]
[1748527386597,1.6112,2664.3,2663.6,10.0]
[1748527386598,1.6112,2664.3,2663.6,3.75424819]
[1748527386814,1.6112,2664.3,2663.2,11.754742]
[1748527387060,1.6112,2664.3,2663.5,3.75438684]
[1748527387193,1.6112,2664.3,2663.4,8.0]
[1748527387194,5.8852,2664.3,2663.7,10.0]
[1748527387366,1.6112,2664.3,2663.7,3.75414665]
[1748527387803,1.6112,2664.3,2663.7,0.113]
[1748527388005,1.6112,2664.3,2663.8,3.75395088]
[1748527388204,1.267,2664.7,2663.7,3.86716926]
[1748527388205,1.5946,2664.6,2663.9,3.75377845]
[1748527388406,1.5946,2664.6,2663.9,3.263]
[1748527388571,1.5946,2664.6,2663.8,3.4981]
[1748527388572,0.71346,2664.5,2663.8,3.4981]
[1748527388972,0.71346,2664.5,2663.7,3.75415068]
[1748527389173,1.5946,2664.6,2663.8,6.62199459]
[1748527389412,1.5946,2664.6,2664.0,3.457682]
[1748527389708,1.5946,2664.6,2664.0,12.39037]
[1748527389914,1.5946,2664.6,2664.0,2.39037]
[1748527390209,1.5946,2664.6,2664.0,5.94009674]
[1748527390408,1.5946,2664.6,2664.0,3.75369308]
[1748527390607,1.5946,2664.6,2664.0,12.63407]
[1748527390789,1.5946,2664.6,2664.0,2.63407]
[1748527391170,1.5946,2664.6,2664.0,8.0]
[1748527391406,1.5946,2664.6,2663.8,8.0]
[1748527391705,1.5946,2664.6,2664.1,10.0]
[1748527392011,1.5946,2664.6,2664.0,13.5357]
[1748527392195,1.5946,2664.6,2664.0,3.75362369]
[1748527392508,1.5946,2664.6,2664.0,8.0]
[1748527392812,1.5946,2664.6,2663.6,0.113]
[1748527392813,1.64151593,2664.6,2663.6,8.0]
[1748527392987,0.28616,2664.5,2663.6,8.0]
[1748527393510,0.28616,2664.5,2663.8,8.0]
[1748527393808,0.28616,2664.5,2663.6,3.75423952]
[1748527393974,0.28616,2664.5,2663.6,3.75425246]
[1748527394175,0.28616,2664.5,2663.6,4.50511463]
[1748527394409,0.28616,2664.5,2663.8,8.0]
[1748527395018,0.28616,2664.5,2663.7,8.0]
[1748527395313,0.28616,2664.5,2663.9,10.0]
[1748527395897,1.5946,2664.6,2663.8,6.50910098]
[1748527396097,5.8646,2664.6,2663.9,13.75382521]
[1748527396411,5.8646,2664.6,2663.8,13.75395654]
[1748527396612,5.8646,2664.6,2663.9,10.0]
[1748527397277,1.5227,2664.5,2663.3,0.113]
[1748527397480,1.5227,2664.3,2663.0,0.113]
[1748527397677,1.5227,2664.3,2662.6,8.39791841]
[1748527397678,1.5227,2664.2,2662.7,3.86854527]
[1748527397906,1.5227,2664.2,2662.6,0.37324909]
[1748527397907,0.55,2664.1,2662.6,0.37324909]
[1748527398108,1.6175,2663.9,2662.6,4.12887151]
[1748527398359,1.6175,2663.7,2662.7,10.0]
[1748527398505,1.6175,2663.7,2662.6,0.37324909]
[1748527398506,1.6175,2663.5,2662.6,0.37324909]
[1748527398703,1.6175,2663.3,2662.6,0.37324909]
[1748527399681,4.269,2663.2,2662.6,0.37324909]
[1748527400391,5.8474,2663.2,2662.6,0.37324909]
[1748527400639,6.43683433,2663.2,2662.6,0.37324909]
[1748527402926,2.16783433,2663.2,2662.6,0.37324909]
[1748527403910,1.5784,2663.2,2662.6,0.37324909]
[1748527404211,1.6408,2663.5,2663.0,10.0]
[1748527404437,1.6408,2663.5,2663.0,3.7551334]
[1748527404674,1.6408,2663.5,2663.0,3.75515656]
[1748527404972,1.6408,2663.5,2663.0,3.75504329]
[1748527405277,4.267,2663.8,2663.1,3.78641075]
[1748527405572,1.5841,2663.9,2663.2,3.75486815]
[1748527405771,1.5841,2663.9,2663.2,13.75488134]
[1748527405969,1.5841,2663.9,2663.3,3.7546309]
[1748527406354,1.5841,2663.9,2663.2,11.75479882]
[1748527406556,1.5841,2663.9,2663.2,8.0]
[1748527406871,1.5841,2663.9,2663.2,11.75480855]
[1748527407574,1.5841,2663.9,2663.1,0.03144678]
[1748527407777,1.5841,2663.9,2663.1,11.78634004]
[1748527408135,1.5841,2663.9,2663.2,6.41823]
[1748527408336,1.5841,2663.9,2663.3,10.0]
[1748527408734,1.5841,2663.9,2663.2,2.091653]
[1748527409089,1.5841,2663.9,2663.3,10.0]
[1748527409243,1.5841,2663.9,2663.1,11.78642318]
[1748527409448,1.5841,2663.9,2663.3,10.0]
[1748527410175,1.259,2664.0,2663.6,3.75429812]
[1748527410493,1.5402,2664.5,2663.5,8.113]
[1748527410635,1.5402,2664.5,2664.0,3.75368291]
[1748527410830,1.5402,2664.5,2663.7,8.0]
[1748527411065,1.5402,2664.5,2663.8,3.75395655]
[1748527411297,1.5402,2664.5,2663.8,3.7539671]
[1748527411574,1.5402,2664.5,2663.7,3.75415451]
[1748527411748,1.5402,2664.5,2663.7,8.0]
[1748527411951,1.5402,2664.5,2663.9,3.75375732]
[1748527412137,1.5402,2664.5,2664.0,0.75077535]
[1748527412338,1.5402,2664.5,2664.0,0.37597369]
[1748527412540,1.6318,2664.9,2663.7,0.107]
[1748527412740,4.264,2664.8,2664.1,10.0]
[1748527412940,5.8958,2664.9,2664.1,10.0]
[1748527413647,5.8958,2664.9,2663.8,11.75398039]
[1748527413856,1.6025,2664.8,2663.8,8.0]
[1748527414144,1.6025,2664.8,2663.9,10.0]
[1748527414343,0.60958,2664.9,2663.4,8.01758097]
[1748527414344,0.02,2664.9,2664.6,3.752806]
[1748527414579,0.02,2664.9,2664.5,3.75298309]
[1748527414987,0.02,2664.9,2664.6,3.75286254]
[1748527415295,0.02,2664.9,2664.5,13.618932]
[1748527415439,0.02,2664.9,2664.6,3.388232]
[1748527415644,0.02,2664.9,2664.7,10.0]
[1748527415958,0.02,2664.9,2664.8,10.0]
[1748527416139,0.02,2664.9,2664.8,6.18129083]
[1748527416553,0.02,2664.9,2664.8,2.428664]
[1748527416879,0.02,2664.9,2664.8,6.18129083]
[1748527417276,0.02,2664.9,2664.8,16.16377509]
[1748527418471,0.02,2664.9,2664.8,13.73511109]
[1748527419028,0.02,2664.9,2664.8,16.78531109]
[1748527419300,0.02,2664.9,2664.8,13.73511109]
[1748527419466,0.02,2664.9,2664.8,19.76840809]
[1748527419666,0.02,2664.9,2664.8,19.10734809]
[1748527421061,0.02,2665.9,2664.9,8.0]
[1748527421388,0.02,2665.9,2665.1,8.0]
[1748527421595,1.5043,2665.8,2664.8,0.107]
[1748527421927,1.5043,2665.8,2665.1,8.0]
[1748527422068,1.5043,2665.8,2665.3,10.0]
[1748527422266,1.5043,2665.8,2665.2,2.622207]
[1748527422267,1.5043,2665.8,2665.4,10.0]
[1748527422762,1.5043,2665.8,2665.4,0.37493672]
[1748527422966,1.5043,2665.8,2664.5,0.107]
[1748527422967,1.57999252,2665.7,2664.5,3.85998508]
[1748527423210,1.5331,2665.6,2664.6,6.43887071]
[1748527423425,1.5331,2665.6,2664.6,3.75286971]
[1748527423703,1.5331,2665.6,2665.1,10.0]
[1748527423903,1.5331,2665.6,2664.6,11.75284017]
[1748527424104,1.6527,2665.9,2665.3,15.047149]
[1748527424304,1.6527,2665.9,2665.2,3.75206363]
[1748527424305,1.6527,2665.9,2665.2,10.0]
[1748527424509,1.6527,2665.9,2665.3,3.75182646]
[1748527425195,1.6527,2665.9,2665.4,3.75176041]
[1748527425406,1.6527,2665.9,2665.4,4.50214203]
[1748527425707,1.6527,2665.9,2665.4,0.75038162]
[1748527425898,1.6527,2665.9,2665.4,0.38048999]
[1748527426215,1.6527,2665.9,2665.2,8.0]
[1748527426705,1.6527,2665.9,2665.1,8.0]
[1748527427074,1.6527,2665.9,2664.9,8.0]
[1748527427267,1.6527,2665.9,2665.1,10.0]
[1748527427496,1.6527,2665.9,2665.1,18.0]
[1748527427697,1.6527,2665.9,2665.2,8.0]
[1748527428012,1.6527,2665.9,2665.1,8.0]
[1748527428304,1.6527,2665.9,2665.1,3.75219854]
[1748527428516,1.6417109,2665.9,2665.2,8.0]
[1748527428689,1.6417109,2665.9,2665.1,11.75212909]
[1748527428886,1.6417109,2665.9,2665.2,3.75203736]
[1748527429086,1.6417109,2665.9,2665.3,3.75185388]
[1748527429286,5.8947109,2665.9,2665.4,0.37518539]
[1748527429588,1.6417109,2665.9,2665.4,0.37518539]
[1748527429923,0.0090109,2665.9,2665.6,13.186556]
[1748527430124,0.0090109,2665.9,2665.6,11.75147556]
[1748527430339,0.0090109,2665.9,2665.6,8.0]
[1748527430538,0.0090109,2665.9,2665.6,0.96261538]
[1748527430741,0.0090109,2665.9,2665.6,8.0]
[1748527430917,1.6075,2665.8,2665.4,0.37171724]
[1748527431210,1.6075,2665.8,2664.9,4.252]
[1748527431211,1.6075,2665.8,2665.2,8.0]
[1748527431513,1.6075,2665.8,2665.2,11.75203514]
[1748527431720,1.6075,2665.8,2665.3,6.55517573]
[1748527431899,1.6075,2665.8,2665.4,10.0]
[1748527432385,1.6075,2665.8,2664.9,0.107]
[1748527432570,1.6075,2665.8,2665.1,11.75213459]
[1748527433212,1.6075,2665.8,2665.2,3.75205013]
[1748527433776,1.6075,2665.8,2665.0,12.416115]
[1748527434016,1.6075,2665.8,2664.9,3.75242053]
[1748527434325,1.6075,2665.8,2665.1,16.66476354]
[1748527434611,1.6075,2665.8,2665.1,3.75219354]
[1748527434989,1.6075,2665.8,2665.1,10.0]
[1748527435396,1.6075,2665.8,2665.1,3.75218665]
[1748527435721,1.6075,2665.8,2665.1,10.0]
[1748527436051,1.6075,2665.8,2665.1,13.655279]
[1748527436220,1.6075,2665.8,2665.2,10.0]
[1748527436420,1.6075,2665.8,2665.1,10.0]
[1748527436620,1.6075,2665.8,2665.2,10.0]
[1748527436950,1.6075,2665.8,2665.0,10.0]
[1748527437148,1.6075,2665.8,2664.9,11.75242708]
[1748527437854,1.5177,2665.0,2664.0,0.37937786]
[1748527438157,0.55,2665.4,2664.1,16.39479415]
[1748527438158,1.5767,2664.8,2664.1,16.39479415]
[1748527438308,1.5767,2664.8,2664.1,13.75355256]
[1748527438513,1.5767,2664.8,2664.1,0.375928]
[1748527438851,1.5767,2664.8,2664.0,0.37538812]
[1748527439050,1.5767,2664.8,2664.0,8.37538812]
[1748527439345,1.5767,2664.8,2663.9,13.75387721]
[1748527439546,1.5767,2664.8,2664.1,2.7327]
[1748527439780,1.5767,2664.8,2664.1,0.38297712]
[1748527440053,1.5767,2664.8,2664.2,10.0]
[1748527440263,1.5767,2664.8,2664.3,10.0]
[1748527440707,1.5767,2664.8,2664.2,3.75344983]
[1748527440911,1.5767,2664.8,2664.2,13.366065]
[1748527441150,1.5767,2664.8,2664.0,8.0]
[1748527441358,4.29491125,2664.9,2664.0,8.0]
[1748527441359,1.547,2664.6,2664.0,8.0]
[1748527441527,1.24687995,2664.6,2664.0,8.0]
[1748527441955,1.24687995,2664.6,2663.9,10.0]
[1748527442249,1.24687995,2664.6,2663.8,10.0]
[1748527442413,1.24687995,2664.6,2663.9,10.0]
[1748527442614,1.24687995,2664.6,2663.8,3.75396451]
[1748527442813,1.24687995,2664.6,2663.8,10.77121252]
[1748527443014,1.24687995,2664.6,2663.8,0.77121252]
[1748527443253,1.24687995,2664.6,2663.9,10.0]
[1748527443459,1.24687995,2664.6,2663.8,4.52517037]
[1748527443676,1.24687995,2664.6,2664.2,10.0]
[1748527443972,0.59630194,2664.6,2663.2,2.25298426]
[1748527444177,0.59630194,2664.6,2663.2,0.3775]
[1748527444384,4.35006521,2664.5,2663.1,4.00961556]
[1748527444674,1.5363,2664.3,2663.3,10.0]
[1748527444975,1.5363,2664.2,2663.0,3.75502829]
[1748527445163,1.5363,2664.0,2663.0,3.75516334]
[1748527445331,1.5363,2663.8,2662.7,3.75546605]
[1748527445530,1.5363,2663.8,2662.9,10.0]
[1748527445531,0.04693215,2663.7,2662.9,10.0]
[1748527445758,0.04693215,2663.7,2662.9,0.38167394]
[1748527445947,1.5121,2663.6,2662.9,3.75524916]
[1748527446150,1.5121,2663.6,2663.0,3.75514539]
[1748527446571,1.5121,2663.6,2662.9,3.75523584]
[1748527446773,1.5121,2663.6,2663.0,10.0]
[1748527446972,1.5121,2663.6,2662.7,0.37739812]
[1748527447174,1.5121,2663.6,2662.6,3.75571925]
[1748527447358,1.5121,2663.6,2662.5,3.75582236]
[1748527447558,1.5062,2663.5,2662.7,10.0]
[1748527447760,1.5062,2663.5,2662.8,13.75544464]
[1748527447970,1.5062,2663.5,2662.9,9.78877]
[1748527448151,1.5062,2663.5,2662.8,9.59047]
[1748527448478,1.5062,2663.5,2663.0,10.0]
[1748527448648,1.5062,2663.5,2663.1,2.385647]
[1748527448846,1.5062,2663.5,2662.9,13.75523185]
[1748527449074,1.5062,2663.5,2663.1,2.388647]
[1748527449273,1.5062,2663.5,2662.9,10.0]
[1748527449274,1.5062,2663.5,2662.9,3.75516998]
[1748527449475,1.5062,2663.5,2663.0,3.75507008]
[1748527449649,1.5062,2663.5,2663.0,9.36040561]
[1748527449848,1.5062,2663.5,2663.0,3.75509861]
[1748527450536,1.5062,2663.5,2662.9,10.0]
[1748527450733,1.5062,2663.5,2663.1,3.75491477]
[1748527450984,1.5062,2663.5,2663.2,3.75485516]
[1748527451274,1.5062,2663.5,2663.1,3.75494414]
[1748527451478,1.5062,2663.5,2663.0,10.0]
[1748527451649,1.5062,2663.5,2662.9,10.0]
[1748527451974,1.5062,2663.5,2662.8,11.75538026]
[1748527452176,1.5062,2663.5,2662.8,8.0]
[1748527452338,1.5062,2663.5,2662.8,11.75540051]
[1748527452538,1.5062,2663.5,2663.1,3.75494502]
[1748527452762,1.5062,2663.5,2663.2,3.75485118]
[1748527452953,1.5062,2663.5,2663.1,3.75495311]
[1748527453148,1.5062,2663.5,2663.2,10.75100648]
[1748527453481,1.6288,2664.2,2663.4,8.0]
[1748527453632,1.6288,2664.2,2663.6,27.503254]
[1748527453834,1.5919,2664.4,2664.0,3.7536963]
[1748527455670,1.5919,2664.4,2664.0,4.13093849]
[1748527456035,1.5209,2664.8,2664.2,6.92034933]
[1748527456376,1.5209,2664.8,2664.0,0.96399206]
[1748527456575,1.5209,2664.8,2664.2,3.75345847]
[1748527456937,1.5209,2664.8,2664.3,17.91203765]
[1748527457133,1.5209,2664.8,2664.4,3.75308975]
[1748527457380,1.5209,2664.8,2664.4,4.50409623]
[1748527457590,1.5209,2664.8,2664.3,8.0]
[1748527458087,1.5209,2664.8,2664.3,11.75325606]
[1748527458637,0.02,2664.9,2664.3,11.75325606]
[1748527458638,0.02,2664.9,2664.4,0.0281363]
[1748527458995,0.02,2664.9,2664.8,14.94734283]
[1748527459341,0.02,2664.9,2664.8,14.97464283]
[1748527459654,0.02,2664.9,2664.8,6.97464283]
[1748527460083,0.02,2664.9,2664.8,14.97464283]
[1748527462482,0.02,2664.9,2664.6,3.7529085]
[1748527462665,0.02,2664.9,2664.8,3.75262683]
[1748527463283,0.02,2664.9,2664.5,0.0273]
[1748527463443,0.02,2664.9,2664.6,2.599662]
[1748527463649,0.02,2664.9,2664.7,3.75270517]
[1748527463845,0.02,2664.9,2664.7,3.75275254]
[1748527464182,0.02,2664.9,2664.6,2.599662]
[1748527464183,0.02,2664.9,2664.8,13.75262683]
[1748527464482,0.02,2664.9,2664.8,8.79802083]
[1748527464669,0.02,2664.9,2664.8,6.05801283]
[1748527464869,0.02,2664.9,2664.6,3.75289943]
[1748527465070,0.02,2664.9,2664.6,10.0]
[1748527465270,0.02,2664.9,2664.6,3.75289204]
[1748527465471,0.02,2664.9,2664.8,10.0]
[1748527465781,0.02,2664.9,2664.8,13.75262683]
[1748527465992,0.02,2664.9,2664.7,10.0]
[1748527466224,0.02,2664.9,2664.7,3.7527512]
[1748527466427,0.02,2664.9,2664.5,10.0]
[1748527466428,1.5056,2664.8,2664.5,10.0]
[1748527466561,1.5056,2664.8,2664.3,3.75331558]
[1748527466761,1.5056,2664.8,2664.4,4.561906]
[1748527467100,0.02,2664.9,2664.6,3.75279789]
[1748527467336,0.02,2664.9,2664.7,3.75268057]
[1748527467462,0.02,2664.9,2664.7,10.0]
[1748527467811,0.02,2664.9,2664.7,3.75272879]
[1748527468310,0.02,2664.9,2664.6,3.75289703]
[1748527468525,0.02,2664.9,2664.7,13.75268494]
[1748527468725,0.02,2664.9,2664.6,13.75288309]
[1748527469024,0.02,2664.9,2664.7,3.75275849]
[1748527469222,0.02,2664.9,2664.6,3.75283215]
[1748527469511,0.02,2664.9,2664.5,10.0]
[1748527469512,0.02,2664.9,2664.7,13.75276502]
[1748527469838,0.02,2664.9,2664.7,10.0]
[1748527470112,0.02,2664.9,2664.6,3.7529085]
[1748527470412,0.02,2664.9,2664.5,3.75299661]
[1748527470823,0.02,2664.9,2664.6,3.75290165]